Cogmind - Beta 14 @@@ ROGUE MODE // 2024.11.02 @ 14:52:14 Player: Gabe+Kate4EVR Result: Destroyed by X-67 Chaingunner with Heavy Machine Gun Performance ------------- Evolutions (4) 2000 Regions Visited (6) 1200 Robots Destroyed (105) 525 Value Destroyed (2820) 2820 Prototype IDs (5) 100 Alien Tech Used (0) 0 Bonus (-89) -89 TOTAL SCORE: 6556 Bonus ------- High Alert Combat Kills 73 Friendly Fire -162 Cogmind --------- Core Integrity 0/850 Matter 17/300 Energy 100/100 System Corruption 5% Temperature Cool (0) Movement Flying (32) Location -6/Factory Parts ------- > --- POWER (1) -------- (None) > --- PROPULSION (3) --- VTOL Module VTOL Module > --- UTILITY (9) ------ Advanced Visual Processing Unit Improved Targeting Computer Improved Targeting Computer > --- WEAPON (2) ------- (None) > --- INVENTORY (5) ---- Cloaking Device Gatling Laser Flak Gun Plasma Cutter Scythe Peak State ------------ > --- POWER ------------ Micro Nuclear Core > --- PROPULSION ------- Light Treads Light Treads Light Treads > --- UTILITY ---------- Advanced Heat Sink Large Storage Unit Advanced Visual Processing Unit Improved Targeting Computer Improved Targeting Computer Improved Targeting Computer Recoil Stabilizer Recoil Stabilizer Improved Utility Shielding > --- WEAPON ----------- Heavy Assault Cannon > --- INVENTORY -------- Nuclear Core Light Nuclear Core Light Treads Compact Matter Pod Cloaking Device Focal Shield Thermal Shield Enhanced Autogun Enhanced Autogun Enhanced Autogun Assault Cannon Assault Cannon Rocket Launcher Plasma Cutter Scythe [Rating: 42] Favorites ----------- Power Improved Ion Engine Engine Improved Ion Engine Power Core Light Nuclear Core Propulsion Light Treads Treads Light Treads Leg Aluminum Leg Flight Unit VTOL Module Utility Improved Targeting Computer Device Heat Sink Storage Large Storage Unit Processor Improved Targeting Computer Protection Improved Utility Shielding Weapon Assault Cannon Energy Gun Small Laser Ballistic Gun Enhanced Autogun Ballistic Cannon Assault Cannon Launcher Rocket Launcher Slashing Weapon Scythe Build | -11 -10 -9 -8 -8 -8 -6 ------- Run | Yrd Mat Mat Mat Sto Rec Fac Slots Evolved 8 | . . 2 2 . . 4 Power . | . . . . . . . Propulsion 1 | . . . 1 . . . Utility 7 | . . 2 1 . . 4 Weapon . | . . . . . . . Parts Attached 108 | 7 23 24 3 20 3 28 Power 13 | 1 3 4 . 2 . 3 Engine 9 | 1 1 4 . 2 . 1 Core 4 | . 2 . . . . 2 Reactor . | . . . . . . . Propulsion 42 | 2 10 9 1 10 3 7 Treads 20 | . . 6 . 10 3 1 Leg 19 | 2 10 3 1 . . 3 Wheel . | . . . . . . . Hover . | . . . . . . . Flight 3 | . . . . . . 3 Utility 22 | 2 1 5 2 2 . 10 Device 11 | 1 1 1 1 . . 7 Storage 5 | 1 . 1 . 1 . 2 Processor 5 | . . 3 1 1 . . Hackware . | . . . . . . . Protection 1 | . . . . . . 1 Artifact . | . . . . . . . Weapon 31 | 2 9 6 . 6 . 8 Energy Gun 8 | 1 5 1 . 1 . . Energy Cannon . | . . . . . . . Ballistic Gun 8 | 1 . . . 3 . 4 Ballistic Cannon 12 | . 4 4 . 2 . 2 Launcher 2 | . . 1 . . . 1 Special Weapon . | . . . . . . . Impact Weapon . | . . . . . . . Slashing Weapon 1 | . . . . . . 1 Piercing Weapon . | . . . . . . . Special Melee Weapon . | . . . . . . . Unidentified Prototypes 5 | . . 2 . 3 . . Corrupted Parts 3 | . 1 . . 1 . 1 System Corruption 5 | . 3 . . 1 . 1 Parts Lost 29 | . 4 . . . . 25 Power 4 | . 1 . . . . 3 Propulsion 11 | . 3 . . . . 8 Utility 8 | . . . . . . 8 Weapon 6 | . . . . . . 6 Highest Loss Streak 14 | . 3 . . . . 14 To Critical Strikes . | . . . . . . . Average Slot Usage (%) 93 | . 97 99 93 95 90 82 Engine 7 | . 5 10 9 9 9 2 Core 1 | . 7 . . . . 1 Treads 19 | . . 12 18 26 27 13 Leg 5 | . 27 9 3 . . 1 Device 6 | . 14 11 9 . . 15 Storage 9 | . 14 11 9 9 9 7 Processor 27 | . . 21 27 35 36 24 Energy Gun 2 | . 14 1 . . . . Ballistic Gun 1 | . 7 . . 1 . 1 Ballistic Cannon 11 | . 5 20 18 11 9 5 Peak Build Rating 42 | 9 12 19 24 27 25 42 Average Rating 22 | 5 9 18 21 25 25 35 On Entrance 16 | . 9 10 19 24 25 25 Naked Turns . | . . . . . . . Heaviest Build 44 | 15 17 24 24 39 39 44 Greatest Support 60 | 20 20 40 40 60 60 60 Greatest Overweight (x) 9 | 1 1 2 . . . 9 Average Overweight (x) . | . . . . . . . Largest Inventory Capacity 15 | 8 8 8 8 15 15 15 Average Capacity 12 | 7 8 8 8 14 15 14 Most Carried 15 | 5 8 8 8 15 15 15 Average Carried 11 | . 7 7 7 13 15 11 Final Capacity 15 | 8 8 8 8 15 15 5 Final Carried 15 | 5 8 8 8 15 15 5 Class Distribution -------------------- 58% | Scavenger-Mutant 40% | Mutant Dominant Class ---------------- Scavenger-Mutant | -10/Materials Mutant | -9/Materials Mutant | -8/Materials Scavenger-Mutant | -8/Storage Scavenger-Mutant | -8/Recycling Scavenger-Mutant | -6/Factory Resources | -11 -10 -9 -8 -8 -8 -6 ----------- Run | Yrd Mat Mat Mat Sto Rec Fac Matter Collected 3058 | 327 297 549 98 1396 102 289 Remotely . | . . . . . . . Salvage Created 3154 | 165 587 533 85 1066 142 576 Parts 181 | 7 39 38 2 54 7 34 Haulers Intercepted 10 | . 1 3 . 6 . . Recyclers Shooed 3 | 1 . . . 2 . . Parts Field Recycled . | . . . . . . . Retrieved Matter . | . . . . . . . Parts Self-Destructed . | . . . . . . . Prevented . | . . . . . . . Kills | -11 -10 -9 -8 -8 -8 -6 ------- Run | Yrd Mat Mat Mat Sto Rec Fac Combat Hostiles Destroyed 75 | . 14 20 2 20 3 16 Melee 1 | . . . . . . 1 Guns 15 | . 8 . . 3 . 4 Cannons 55 | . 6 16 2 17 3 11 AOE 4 | . . 4 . . . . Classes Destroyed 15 | 3 3 1 1 2 . 5 Worker 6 | 2 1 1 . . . 2 Builder 2 | . . . . . . 2 Tunneler 3 | 2 . 1 . . . . Hauler 10 | . 1 3 . 6 . . Recycler 4 | 1 1 . . 2 . . Mechanic 1 | . . . . . . 1 Operator 2 | . . . 1 1 . . Watcher 2 | . . . . 2 . . Swarmer 23 | . 3 8 . 3 . 9 Saboteur 1 | . . . . . . 1 Grunt 37 | . 11 11 2 11 . 2 Brawler 1 | . . . . 1 . . Sentry 11 | . . 1 . 5 3 2 Hunter 1 | . . . . . . 1 Programmer 1 | . . . . . . 1 Best Kill Streak 8 | 2 5 8 3 5 1 7 Combat Bots Only 7 | . 4 7 2 4 1 6 Max Kills in Single Turn 4 | 1 1 4 1 1 1 1 Gunslinging . | . . . . . . . Exploded 3 | . . 3 . . . . Melee 1 | . . . . . . 1 Uniques/NPCs Destroyed . | . . . . . . . Combat | -11 -10 -9 -8 -8 -8 -6 -------- Run | Yrd Mat Mat Mat Sto Rec Fac Hostile Shots Fired 611 | . 113 60 3 89 6 340 Missed 183 | . 27 20 . 26 3 107 Damage Taken 5900 | 29 990 411 53 866 157 3394 Core 1206 | . 151 24 18 160 . 853 Absorbed by Shields . | . . . . . . . Redirected to Shielding 102 | . . . . . . 102 Ignored by Resistances 290 | . . . . . . 290 Regen/Repaired (Parts) 113 | . 73 . . 40 . . Core Remaining (%) 75 | 100 39 94 . . 67 . Volleys Fired 301 | 19 63 43 6 92 9 69 Largest 2 | 2 2 2 2 2 1 2 Hottest 105 | 60 105 88 88 105 60 88 Shots Fired 535 | 38 113 86 12 169 9 108 Gun 217 | 38 93 . . 39 . 47 Cannon 314 | . 20 82 12 130 9 61 Launcher 4 | . . 4 . . . . Special . | . . . . . . . Kinetic 449 | 19 51 82 12 168 9 108 Thermal 58 | . 57 . . 1 . . Explosive 4 | . . 4 . . . . Electromagnetic 24 | 19 5 . . . . . Robot Hit Streak 25 | 8 8 7 3 17 8 25 Robot Miss Streak 5 | 2 5 3 1 2 . 4 Penetration Max . | . . . . . . . Secondary Targets 3 | . 2 . . . . 1 Max Gunslinging Chain 1 | . 1 . . . . 1 Shots Hit Robots 364 | 26 74 48 7 123 7 79 Core Hits 143 | 6 28 23 5 43 3 35 Critical Kills . | . . . . . . . Critical Parts Destroyed 1 | 1 . . . . . . Critical Strikes 16 | 1 1 1 1 11 . 1 Burn 1 | . 1 . . . . . Destroy 1 | 1 . . . . . . Blast 14 | . . 1 1 11 . 1 Melee Attacks 1 | . . . . . . 1 Impact . | . . . . . . . Slashing 1 | . . . . . . 1 Piercing . | . . . . . . . Sneak Attacks . | . . . . . . . Combat Hostiles . | . . . . . . . Follow-up Attacks . | . . . . . . . Damage Inflicted 8615 | 427 985 1621 173 2987 312 2110 Guns 2313 | 343 748 . . 555 . 667 Cannons 5708 | . 223 1214 173 2432 312 1354 Explosions 550 | 84 . 407 . . . 59 Melee 30 | . . . . . . 30 Ramming 14 | . 14 . . . . . Kinetic 7349 | 195 465 1214 173 2969 312 2021 Thermal 558 | 84 456 . . 18 . . Explosive 407 | . . 407 . . . . Electromagnetic 257 | 148 50 . . . . 59 Impact . | . . . . . . . Slashing 30 | . . . . . . 30 Piercing . | . . . . . . . Highest Corruption 5 | . 3 . . 1 1 5 Average Corruption 1 | . 3 . . 1 1 2 Corruption Purged . | . . . . . . . Corruption Blocked . | . . . . . . . Effects 18 | . 6 . . 2 8 2 Message Errors 7 | . 2 . . . 4 1 Matter Fused 1 | . 1 . . . . . Heat Flow Errors 2 | . 2 . . . . . Energy Discharges 3 | . . . . 1 1 1 Data Loss (minor) 2 | . 1 . . . 1 . Data Loss (major) 2 | . . . . . 2 . Misfires 1 | . . . . 1 . . Overload Shots . | . . . . . . . Overflow Damage 260 | . . 70 . 39 52 99 Projectiles 203 | . . 13 . 39 52 99 Explosions 57 | . . 57 . . . . Melee . | . . . . . . . Knockbacks 36 | . 5 11 1 9 . 10 Impact . | . . . . . . . Kinetic 32 | . 5 7 1 9 . 10 Secondary 4 | . . 4 . . . . Self-Inflicted Damage 50 | 29 . 21 . . . . Shots 2 | 1 . 1 . . . . Rammed . | . . . . . . . Targets Rammed 9 | . 9 . . . . . Kicked 9 | . 9 . . . . . Crushed . | . . . . . . . Highest Temperature 236 | 12 236 21 3 174 29 . Average Temperature 51 | 12 72 7 3 46 10 . Received Heat Transfer 1413 | . 546 153 27 486 30 171 Effects 5 | . 5 . . . . . Interference 5 | . 5 . . . . . Siege Activations . | . . . . . . . Robots Corrupted . | . . . . . . . Combat Hostiles . | . . . . . . . Parts Fried 1 | 1 . . . . . . Impact Corruptions . | . . . . . . . Robots Melted . | . . . . . . . Combat Hostiles . | . . . . . . . Parts Melted 4 | . 4 . . . . . Heat Transferred 1230 | 50 1143 . . 37 . . Parts Sabotaged . | . . . . . . . Parts Stolen . | . . . . . . . Parts Stripped . | . . . . . . . Power Chain Reactions 2 | 2 . . . . . . Alert | -11 -10 -9 -8 -8 -8 -6 ------- Run | Yrd Mat Mat Mat Sto Rec Fac Peak Influence 609 | 25 255 609 174 460 55 284 Initial 107 | . 16 107 73 73 21 . Average 163 | 6 129 267 134 237 28 65 Maximum Alert Level 2 | . 1 2 . 2 . 1 Low Security (%) 63 | 100 87 34 100 36 100 91 Level 1 29 | . 12 52 . 48 . 8 Level 2 7 | . . 12 . 14 . . Level 3 . | . . . . . . . Level 4 . | . . . . . . . Level 5 . | . . . . . . . High Security . | . . . . . . . Max Security . | . . . . . . . Squads Dispatched 16 | . 2 4 1 2 . 7 Investigation . | . . . . . . . Extermination 2 | . . . . . . 2 Reinforcement 11 | . 2 4 1 2 . 2 Assault . | . . . . . . . Garrison 3 | . . . . . . 3 Intercept . | . . . . . . . Searches Triggered . | . . . . . . . Construction Impeded 1 | . . 1 . . . . Haulers Reinforced . | . . . . . . . Active Scanning Responses . | . . . . . . . Cargo Convoy Interrupts 1 | . . . . . . 1 Stealth | -11 -10 -9 -8 -8 -8 -6 --------- Run | Yrd Mat Mat Mat Sto Rec Fac Distress Signals 7 | . 3 1 . 3 . . Communications Jammed . | . . . . . . . Distress Signals . | . . . . . . . Times Spotted 132 | . 21 26 3 35 2 45 Peak Tracking Total 14 | . 6 4 1 5 . 14 Tactical Retreats 14 | . . 5 . 6 . 3 Traps | -11 -10 -9 -8 -8 -8 -6 ------- Run | Yrd Mat Mat Mat Sto Rec Fac Traps Triggered 1 | . . . . . . 1 Indirectly . | . . . . . . . Trap Hack Attempts . | . . . . . . . Triggered . | . . . . . . . Disarmed . | . . . . . . . Reprogrammed . | . . . . . . . Reused . | . . . . . . . Traps Extracted . | . . . . . . . Installed . | . . . . . . . Triggered . | . . . . . . . Machines | -11 -10 -9 -8 -8 -8 -6 ---------- Run | Yrd Mat Mat Mat Sto Rec Fac Machines Disabled 6 | . . . 1 2 . 3 Max in Single Turn 2 | . . . 1 1 . 2 Machines Repaired . | . . . . . . . Machines Dismantled . | . . . . . . . Machines Sabotaged . | . . . . . . . Overloaded Fab Kills . | . . . . . . . Hacking | -11 -10 -9 -8 -8 -8 -6 --------- Run | Yrd Mat Mat Mat Sto Rec Fac Machines Accessed 15 | . 3 3 1 5 2 1 Terminals 13 | . 2 3 1 4 2 1 Fabricators . | . . . . . . . Repair Stations 2 | . 1 . . 1 . . Recycling Units . | . . . . . . . Scanalyzers . | . . . . . . . Garrison Access . | . . . . . . . Total Hacks 32 | . 9 6 2 9 4 2 Successful 17 | . 5 2 1 6 2 1 Failed 15 | . 4 4 1 3 2 1 Catastrophic 2 | . . 1 . 1 . . Database Lockouts . | . . . . . . . Manual 22 | . 5 5 2 6 4 . Terminals 27 | . 7 6 2 6 4 2 Fabricators . | . . . . . . . Repair Stations 5 | . 2 . . 3 . . Recycling Units . | . . . . . . . Scanalyzers . | . . . . . . . Garrison Access . | . . . . . . . Terminal Hacks 13 | . 3 2 1 4 2 1 Open Door 2 | . . . . 2 . . Open DSF 1 | . . . . . . 1 Emergency Access Points 1 | . 1 . . . . . Unreport Threat 6 | . . 2 . 2 2 . Recall Reinforcements 1 | . . . 1 . . . Zone Layout 2 | . 2 . . . . . Fabricator Hacks . | . . . . . . . Repair Station Hacks 4 | . 2 . . 2 . . Scan Component 2 | . 1 . . 1 . . Repair 2 | . 1 . . 1 . . Recycling Unit Hacks . | . . . . . . . Scanalyzer . | . . . . . . . Garrison Access Hacks . | . . . . . . . Unauthorized Hacks . | . . . . . . . Terminals . | . . . . . . . Fabricators . | . . . . . . . Repair Stations . | . . . . . . . Recycling Units . | . . . . . . . Scanalyzers . | . . . . . . . Garrison Access . | . . . . . . . Data Cores Recovered . | . . . . . . . Used . | . . . . . . . Hacking Detections 11 | . 2 2 1 3 2 1 Full Trace Events . | . . . . . . . Feedback Events . | . . . . . . . Feedback Blocked . | . . . . . . . Robot Schematics Acquired . | . . . . . . . Robots Built . | . . . . . . . Authchips . | . . . . . . . Time . | . . . . . . . Total Robot Build Rating . | . . . . . . . Part Schematics Acquired . | . . . . . . . Parts Built . | . . . . . . . Authchips . | . . . . . . . Time . | . . . . . . . Total Part Build Rating . | . . . . . . . Parts Repaired 2 | . 1 . . 1 . . Time 64 | . 26 . . 38 . . Parts Recycled . | . . . . . . . Recycled Matter . | . . . . . . . Retrieved Matter . | . . . . . . . Retrieved Components . | . . . . . . . Parts Scanalyzed . | . . . . . . . Part Schematics Acquired . | . . . . . . . Parts Damaged . | . . . . . . . Bothacking | -11 -10 -9 -8 -8 -8 -6 ------------ Run | Yrd Mat Mat Mat Sto Rec Fac Used RIF Installer . | . . . . . . . Robots Hacked . | . . . . . . . Non-combat . | . . . . . . . Combat . | . . . . . . . Robot Hacks Applied . | . . . . . . . Relay Couplers Released . | . . . . . . . Fabnet Peak Effective % . | . . . . . . . Robots Rewired . | . . . . . . . Allies Hacked . | . . . . . . . Hacks Repelled . | . . . . . . . Allies | -11 -10 -9 -8 -8 -8 -6 -------- Run | Yrd Mat Mat Mat Sto Rec Fac Total Allies . | . . . . . . . Largest Group . | . . . . . . . Highest-Rated Group . | . . . . . . . Highest-Rated Ally . | . . . . . . . Total Orders . | . . . . . . . Ally Attacks . | . . . . . . . Total Damage . | . . . . . . . Kills . | . . . . . . . Allies Corrupted . | . . . . . . . Allies Melted . | . . . . . . . Intel | -11 -10 -9 -8 -8 -8 -6 ------- Run | Yrd Mat Mat Mat Sto Rec Fac Robot Analysis Total . | . . . . . . . Derelict Logs Recovered . | . . . . . . . Drone Launches . | . . . . . . . Drone Recoveries . | . . . . . . . Exploration | -11 -10 -9 -8 -8 -8 -6 ------------- Run | Yrd Mat Mat Mat Sto Rec Fac Turns Passed 5553 | 181 607 1003 108 1986 896 772 Spaces Moved 2771 | 85 289 455 50 992 533 367 Core 10 | 5 . . . . . 5 Treads 2148 | . . 305 50 992 533 268 Legs 536 | 80 289 150 . . . 17 Wheels . | . . . . . . . Hover . | . . . . . . . Flight 77 | . . . . . . 77 Fastest Speed 29 | 50 120 120 160 160 160 29 Average Speed 155 | 117 120 180 160 160 160 138 Slowest Speed 500 | 120 190 260 160 160 160 500 Overloaded Moves . | . . . . . . . Propulsion Burnouts . | . . . . . . . Robots Hopped 5 | . . . . . . 5 Cave-ins Triggered . | . . . . . . . Exploration Rate (%) 44 | 5 58 44 7 94 90 10 Regions Visited 6 Branch Regions 2 Pre-discovered Areas . | . . . . . . . Known Exits Taken . | . . . . . . . Unknown Exits Taken 6 | 1 1 1 1 1 1 . Scrap Searched . | . . . . . . . Spaces Dug 8 | . . . . 5 3 . Terrain Destroyed 100 | 10 . 62 . 17 4 7 Melee . | . . . . . . . Projectile 45 | . . 17 . 17 4 7 AOE 55 | 10 . 45 . . . . Terrain Rammed . | . . . . . . . Walls Destroyed . | . . . . . . . Machines Disabled . | . . . . . . . Actions | -11 -10 -9 -8 -8 -8 -6 --------- Run | Yrd Mat Mat Mat Sto Rec Fac Total 3517 | 125 440 552 66 1249 564 521 Wait 211 | 10 26 11 6 96 16 46 Move 2756 | 84 288 454 49 991 532 358 Hop 4 | . . . . . . 4 Pick Up 50 | 5 10 6 1 22 . 6 Fast Attach 29 | 7 7 3 1 2 . 9 Attach 21 | . 3 2 1 . . 15 Detach 3 | . . . . . . 3 Swap 58 | . 13 19 1 18 3 4 Drop 73 | . 21 14 1 28 3 6 Fire 301 | 19 63 43 6 92 9 69 Melee 1 | . . . . . . 1 Ram . | . . . . . . . Kick 9 | . 9 . . . . . Crush . | . . . . . . . Escape Stasis . | . . . . . . . Rewire 1 | . . . . . 1 . Trap . | . . . . . . . Miscellaneous . | . . . . . . . Route ------- -11/Scrapyard -10/Materials -9/Materials (discovered 2 exits: *Mat / [*Min]) -8/Materials -8/Storage (discovered 2 exits: [*Fac] / *Rec) -8/Recycling -6/Factory History --------- Turn | Location | Event 4 | -11/Scrapyard | Discovered new exit (range 16) 182 | -11/Scrapyard | Entered Materials 451 | -10/Materials | Lost 3 parts (1p2n) 526 | -10/Materials | Repaired Assault Rifle 637 | -10/Materials | Core integrity fell below 50% 665 | -10/Materials | Discovered new exit (range 12) 789 | -10/Materials | Entered another Materials area 789 | -9/Materials | Evolved 2 slots: Utility x2 1431 | -9/Materials | Discovered new exit (range 12) 1454 | -9/Materials | Build established: Mutant 1604 | -9/Materials | Destroyed 7 combat bots 1621 | -9/Materials | Discovered new exit (range 14) 1792 | -9/Materials | Entered another Materials area 1792 | -8/Materials | Evolved 2 slots: Propulsion x1, Utility x1 1882 | -8/Materials | Discovered new exit (range 7) 1900 | -8/Materials | Entered Storage 2952 | -8/Storage | Build established: Scavenger-Mutant 2975 | -8/Storage | Discovered new exit (range 20) 3192 | -8/Storage | Met 01-MTF 3579 | -8/Storage | Repaired Assault Cannon 3877 | -8/Storage | Discovered new exit (range 4) 3886 | -8/Storage | Entered Recycling 3886 | -8/Recycling | Accompanied by 1 ally (01-MTF) 3980 | -8/Recycling | Scanned before Scraplab entrance 4496 | -8/Recycling | Discovered new exit (range 5) 4782 | -8/Recycling | Entered Factory 4782 | -6/Factory | Evolved 4 slots: Utility x4 5330 | -6/Factory | Garrison activated, responded to threat 5427 | -6/Factory | Lost 14 parts (1p4n6u3w) 5443 | -6/Factory | Core integrity fell below 50% 5511 | -6/Factory | Cargo convoy interrupted 5521 | -6/Factory | Core integrity fell below 20% 5549 | -6/Factory | Lost 7 parts (1p3n1u2w) 5554 | -6/Factory | Destroyed by X-67 Chaingunner with Heavy Machine Gun Last Messages --------------- 05522_ K-01 Serf collects debris. 05522_ Slug penetrates P-60 Hacker. 05523_ K-01 Serf collects debris. 05523_ Acquired Cesium-ion Thruster. 05525_ Penetrated by Slug. 05525_ P-60 Hacker resets K-01 Serf, system corruption cleaned. 05525_ Acquired VTOL Module. 05525_ K-01 Serf collects debris. 05528_ Acquired Gatling Laser. 05530_ Acquired 14 matter. 05532_ ALERT: Rogue bot located, Programmers report to Factory Zone 8N. 05532_ S-27 Virus destroyed. 05534_ K-01 Serf collects debris. 05537_ P-60 Hacker resets K-01 Serf, system corruption cleaned. 05542_ 0CGJ6>&XP TK3YW APQ:ZNZAJUTDRCCLK< 7V 05552_ G-50 Soldier shuts down. 05553_ Cesium-ion Thruster destroyed. 05553_ Penetrated by Slug. 05553_ Slug penetrates Wall. 05553_ Nuclear Core destroyed. Map ----- +----------------------------------------------------+ | ??????????? #??????????????????????????????????? | | ??????????? #??????????????????????????????????? | | ??????????? #??????????????????????????????????? | | ??????????? #??????????????????????????????????? | | ??????????# #??????????????????????????????????? | | ??????????# #??????????????????????????????????? | | ??????????# #?????? ??? ??????????????????????? | | ########### #???"?? ??? ??????????????????????? | | # ""S"" #?? ??????????????????????? | | # "" "" +?? ??????????????????????? | | """ """ + #?? ??????????????????????? | | """ """ % # #?? ??????????????????????? | | """ """ # #?? ??????????????????????? | | # "%%# #?? ??????????????????????? | | # " " ""#= #?? ??????????????????????? | | # ""G"" %%# #?# #?#+########??????????? | | # #? #?# #?# ## #??????????? | | # %#? #?# #?# ## #?########## | | ##+########% #? #?# #?# ## #?# | | ! #?#%= #? %#?# #?# ## #?# !! """ | | #?#%%%# ??# #?# #? #?# !! """ | | #?#!%=# ? ??# #?# #??? #?# !! """ | | #?#%%%# ??? ???# #?# #??###+### | | """ #?#%%%# ??? ???#g### ##?# ##+####### | | [= """ #?#!==######/##### ##xhx### #???? | | [= """ #?#*%% ! =%ih x@xh g ##### | | #?#= =######k ##### p ### # | | #########?#%= ##???#/##+#???#####?# ## # | | ?????????!#*!!# ?? #?????????### #### # | | ???????? #*%%# """ #???????????# #??# # | | ???????? ?#]% + """"" #???????????# #??# # | | ???????" ?# # """"" #???????????! ??# # | | ?????? ??# # #??????????? ??# # | | ????? ?? # %# #??????????# #?# # | | ????? ? + *=+| #??????????#####?# # | | ????" ?? ?# %# #????????????????# + | | ???#T?? ?# #########+#????????????????# # | | ????"? ??# #???????? #????????????????##### | | ????? ??# #??????????????????????????????# | | ????? ???#% #??????????????????????????????# !!! | | ???? ???# #??????????????????????????????# !!! | | ?????#????# %#??????????????????????????????# !!! | | ??????????% ??????????????????????????????# | | ?????????? ??????????????????????????????# | | ??????????% ??????????????????????????????##### | | ?????????? ??????????????????????????????????? | | ?????????? ??????????????????????????????????? | | ?????????? ??????????????????????????????????? | | ?????????????????????????????????????????????????? | | ?????????????????????????????????????????????????? | +----------------------------------------------------+ Best States ------------- Heat Dissipation 56 Energy Generation 18 Energy Capacity 280 Matter Stores 410 Matter Capacity 450 Sight Range 20 Terrain Scan Range 16 Terrain Scan Density 10 Resistance: KI 20 Resistance: TH 20 Utility Shielding 66 Evasion (%) 64 Targeting Accuracy 18 Recoil Reduction 11 Item Schematics ----------------- None Robot Schematics ------------------ None Fabricated ------------ Nothing Alien Tech Used ----------------- None Achievements -------------- None Challenges ------------ None Game ------ Seed PiercingNavigationPit Manual? 0 Play Time 00:39:48 Cumulative 205.5 hours Start 2024.11.02 @ 14:14:04 End 2024.11.02 @ 14:52:14 Sessions 1 Manual Loads 0 Difficulty Rogue Special Mode None Game No. 400 Rogue 400 Adventurer 0 Explorer 0 Win Type - Total 0 Types 0/0/0/0/0/0/0/0/0 Lore% 42 Gallery% 65 Achievement% 48 Wizard Run 0 Options --------- Layout 0 ASCII 0 Keyboard 1 Movement Numpad Keybinds 0 Fullscreen 1 Font 18/X11 Map View 76x50 Zoom Use 0% Tactical HUD 1 Map Filters NONE Filters NONE Steam 1 RUN: 1e9e2374-2931-4377-8fcb-aa1a31801a10